bitfinex/quotes_ETHUSD_20251120
["timestamp","ask_amount","ask_price","bid_price","bid_amount"]
[1763607840474,0.002,3048.7,3048.6,1.0371]
[1763607840792,0.002,3048.7,3048.6,0.5728]
[1763607841871,0.002,3048.7,3048.6,4.31729418]
[1763607842251,0.002,3048.7,3048.6,1.0371]
[1763607842455,0.002,3048.7,3048.6,3.85299418]
[1763607843553,0.002,3048.7,3048.6,4.31729418]
[1763607845056,0.002,3048.7,3048.6,4.41729418]
[1763607845251,0.002,3048.7,3048.6,5.32428682]
[1763607845478,0.002,3048.7,3048.6,5.68809895]
[1763607847008,0.002,3048.7,3048.6,0.5618]
[1763607847299,0.002,3048.7,3048.6,0.6728]
[1763607847611,0.002,3048.7,3048.6,4.41729418]
[1763607849884,0.002,3048.7,3048.6,0.6728]
[1763607850190,0.002,3048.7,3048.6,0.211]
[1763607850695,0.002,3048.7,3048.6,0.7053]
[1763607850861,0.002,3048.7,3048.6,3.98549418]
[1763607851193,0.002,3048.7,3048.6,0.7053]
[1763607851630,0.4448,3048.7,3048.6,0.211]
[1763607851769,0.456,3048.7,3048.6,0.211]
[1763607852680,0.002,3048.7,3048.6,4.46809418]
[1763607853414,0.456,3048.7,3048.1,0.001]
[1763607853705,0.1851,3048.6,3048.5,0.1]
[1763607853901,0.002,3048.7,3048.5,0.1]
[1763607854203,0.002,3048.7,3048.6,0.1]
[1763607854581,0.456,3048.7,3048.6,0.211]
[1763607855907,0.929,3048.7,3048.6,0.211]
[1763607856245,4.20908659,3048.7,3048.6,0.211]
[1763607856389,4.64833525,3048.7,3048.6,0.211]
[1763607857282,5.05383925,3048.7,3048.6,0.1]
[1763607857506,3.28030178,3048.5,3048.4,0.211]
[1763607857724,3.73430178,3048.5,3048.4,0.211]
[1763607858022,1.7198637,3048.5,3048.4,0.211]
[1763607858222,0.454,3048.5,3048.4,0.211]
[1763607860190,0.002,3048.7,3048.6,0.1]
[1763607861499,0.002,3048.7,3048.6,0.5943]
[1763607861703,0.002,3048.7,3048.6,1.0769]
[1763607861900,0.002,3048.7,3048.6,4.35709418]
[1763607863214,0.002,3048.7,3048.6,0.5943]
[1763607863412,0.002,3048.7,3048.6,0.211]
[1763607863413,0.456,3048.7,3048.6,0.211]
[1763607864449,4.20908659,3048.7,3048.6,0.211]
[1763607865811,5.38199714,3048.7,3048.6,0.1]
[1763607866143,0.405504,3048.6,3048.5,0.1]
[1763607866438,3.75319418,3048.6,3048.5,0.211]
[1763607866639,3.75319418,3048.6,3048.5,0.1]
[1763607866640,5.15568682,3048.6,3048.5,0.1]
[1763607866845,6.3831856,3048.6,3048.5,0.1]
[1763607870257,6.07620482,3048.6,3048.5,0.1]
[1763607871533,6.48170882,3048.6,3048.5,0.1]
[1763607871747,6.48170882,3048.6,3048.4,0.1]
[1763607871748,0.405504,3048.5,3048.4,0.1]
[1763607871943,1.20778784,3048.5,3048.4,0.1]
[1763607872147,6.27136696,3048.5,3048.4,0.1]
[1763607872347,5.96468312,3048.5,3048.4,0.1]
[1763607873256,0.4955,3048.5,3048.4,0.1]
[1763607873459,3.28019418,3048.6,3048.5,0.1]
[1763607873836,3.77569418,3048.6,3048.5,0.1]
[1763607874155,3.28208871,3048.7,3048.5,0.1]
[1763607874156,0.002,3048.7,3048.5,0.5579]
[1763607874361,0.002,3048.7,3048.6,0.5579]
[1763607874761,0.002,3048.7,3048.6,0.1]
[1763607875961,0.4975,3048.7,3048.6,0.1]
[1763607876181,0.002,3048.7,3048.6,0.1]
[1763607876362,0.002,3048.7,3048.6,0.5579]
[1763607876734,0.002,3048.7,3048.6,1.0503]
[1763607877832,0.002,3048.7,3048.6,4.33049418]
[1763607878692,0.002,3048.7,3048.6,1.0503]
[1763607878861,0.002,3048.7,3048.6,4.33049418]
[1763607879031,0.002,3048.7,3048.6,5.23748682]
[1763607882748,0.002,3048.7,3048.6,4.74508682]
[1763607882967,0.002,3048.7,3048.6,5.33078682]
[1763607883192,0.002,3048.7,3048.6,4.85608682]
[1763607885967,0.002,3048.7,3048.6,5.33078682]
[1763607887393,0.002,3048.7,3048.6,4.85608682]
[1763607888189,0.002,3048.7,3048.6,5.33078682]
[1763607889086,0.002,3048.7,3048.6,5.21978682]
[1763607889269,0.002,3048.7,3048.6,5.33078682]
[1763607892679,0.002,3048.7,3048.6,4.85608682]
[1763607893997,0.002,3048.7,3048.6,5.33078682]
[1763607895195,0.002,3048.7,3048.6,4.85608682]
[1763607899382,0.002,3048.7,3048.6,5.33078682]
[1763607899581,0.002,3048.7,3048.6,4.85608682]
[1763607900501,0.002,3048.7,3048.6,5.33078682]
[1763607902803,0.002,3048.7,3048.6,8.81907539]
[1763607904320,0.002,3048.7,3048.6,8.70807539]
[1763607904618,0.002,3048.7,3048.6,8.81907539]
[1763607905604,0.002,3048.7,3048.6,8.70807539]
[1763607905809,0.002,3048.7,3048.6,8.81907539]
[1763607906541,0.002,3048.7,3048.6,8.70807539]
[1763607906815,0.002,3048.7,3048.6,4.85608682]
[1763607907128,0.002,3048.7,3048.6,5.33078682]
[1763607907703,0.002,3048.7,3048.6,4.85608682]
[1763607908504,0.002,3048.7,3048.6,5.30658682]
[1763607908920,0.002,3048.7,3048.6,8.79487539]
[1763607910822,0.002,3048.7,3048.6,5.30658682]
[1763607911022,0.002,3048.7,3048.6,5.71209082]
[1763607911222,0.002,3048.7,3048.6,6.06090295]
[1763607912119,0.002,3048.7,3048.6,5.71209082]
[1763607912296,0.002,3048.7,3048.6,6.06090295]
[1763607912710,0.002,3048.7,3048.6,9.51890295]
[1763607913830,0.002,3048.7,3048.6,13.30890295]
[1763607915234,0.002,3048.7,3048.6,13.44016647]
[1763607917913,0.002,3048.7,3048.6,9.87116647]
[1763607918108,0.002,3048.7,3048.6,9.63335434]
[1763607918547,0.002,3048.7,3048.6,9.68335434]
[1763607918950,0.002,3048.7,3048.6,9.57235434]
[1763607919133,0.002,3048.7,3048.6,8.66635034]
[1763607919450,0.9899,3048.7,3048.6,7.4124577]
[1763607919944,0.5009,3048.7,3048.6,4.52945034]
[1763607920180,0.002,3048.7,3048.6,4.52945034]
[1763607921040,0.002,3048.7,3048.6,5.00845034]
[1763607921650,0.002,3048.7,3048.6,4.87718682]
[1763607922337,0.9899,3048.7,3048.6,0.1]
[1763607922550,0.9899,3048.7,3048.6,0.211]
[1763607922951,0.5009,3048.7,3048.6,3.49119418]
[1763607923353,0.5009,3048.7,3048.6,4.39818682]
[1763607923590,0.002,3048.7,3048.6,4.39818682]
[1763607924241,0.002,3048.7,3048.6,4.87718682]
[1763607924442,0.002,3048.7,3048.6,5.32768682]
[1763607925180,0.002,3048.7,3048.6,4.87718682]
[1763607925477,0.002,3048.7,3048.6,4.39818682]
[1763607926679,0.002,3048.7,3048.6,4.85498682]
[1763607927455,0.002,3048.7,3048.6,4.39818682]
[1763607927652,0.002,3048.7,3048.6,4.85498682]
[1763607928384,0.002,3048.7,3048.6,4.39818682]
[1763607928758,0.9645,3048.7,3048.6,4.39818682]
[1763607929464,0.002,3048.7,3048.6,4.85498682]
[1763607929659,0.002,3048.7,3048.6,5.32748682]
[1763607930176,0.002,3048.7,3048.6,4.85498682]
[1763607931311,0.9645,3048.7,3048.6,4.39818682]
[1763607931472,0.9645,3048.7,3048.6,4.28718682]
[1763607931647,0.9645,3048.7,3048.6,1.00699264]
[1763607931855,0.9645,3048.7,3048.6,4.39818682]
[1763607932691,0.9645,3048.7,3048.6,1.11799264]
[1763607932997,0.9645,3048.7,3048.6,0.211]
[1763607933499,0.9645,3048.7,3048.6,3.49119418]
[1763607934083,0.9645,3048.7,3048.6,0.211]
[1763607934463,0.9645,3048.7,3048.6,0.1]
[1763607934664,0.9645,3048.7,3048.6,0.211]
[1763607936363,1.40478105,3048.7,3048.6,0.211]
[1763607937914,0.9645,3048.7,3048.6,0.211]
[1763607938567,0.4865,3048.7,3048.6,6.9815122]
[1763607939381,0.002,3048.7,3048.6,6.9815122]
[1763607940069,0.4861,3048.7,3048.6,3.49119418]
[1763607941185,0.9687,3048.7,3048.6,3.49119418]
[1763607943005,0.002,3048.7,3048.6,3.98029418]
[1763607945807,0.002,3048.7,3048.6,3.49119418]
[1763607946129,0.4861,3048.7,3048.6,3.49119418]
[1763607946754,0.002,3048.7,3048.6,5.37378682]
[1763607948632,0.002,3048.7,3048.6,5.77176562]
[1763607948813,0.002,3048.7,3048.6,5.90304982]
[1763607949209,0.002,3048.7,3048.6,11.05293909]
[1763607951026,0.002,3048.7,3048.6,10.65496029]
[1763607958612,0.4861,3048.7,3048.6,4.41847102]
[1763607958900,0.002,3048.7,3048.6,5.01857102]
[1763607959406,0.002,3048.7,3048.6,4.88728682]
[1763607959710,0.002,3048.7,3048.6,5.36988682]
[1763607960780,0.002,3048.7,3048.6,9.74929516]
[1763607960961,0.002,3049.1,3049.0,0.555504]
[1763607961162,0.002,3049.1,3049.0,4.60539698]
[1763607961513,0.4861,3049.1,3049.0,4.60539698]
[1763607961690,0.4861,3049.1,3049.0,5.08799698]
[1763607961895,0.002,3049.1,3049.0,5.57709698]
[1763607963172,0.002,3049.1,3049.0,8.85686083]
[1763607965324,0.002,3049.1,3049.0,9.34336083]
[1763607965619,0.002,3049.1,3049.0,8.85686083]
[1763607967882,0.002,3049.1,3049.0,9.74886483]
[1763607969083,0.002,3049.1,3049.0,9.26236483]
[1763607969628,0.9405,3049.1,3049.0,3.97336385]
[1763607969784,0.9405,3049.1,3049.0,3.49076385]
[1763607969984,0.9405,3049.1,3049.0,4.39775649]
[1763607970444,0.9405,3049.1,3049.0,1.00699264]
[1763607970650,0.9405,3049.1,3049.0,0.1]
[1763607970936,0.9405,3049.1,3049.0,0.211]
[1763607971238,0.9405,3049.1,3049.0,0.111]
[1763607971239,4.22015629,3049.1,3049.0,0.111]
[1763607971407,4.64217192,3049.1,3048.3,0.90799264]
[1763607971736,0.662,3048.4,3048.3,0.101]
[1763607971892,0.662,3048.4,3048.3,0.112]
[1763607972100,0.662,3048.4,3048.3,0.212]
[1763607972101,1.1287,3048.4,3048.3,0.212]
[1763607974247,1.1287,3048.4,3048.3,3.492517]
[1763607975918,1.1287,3048.4,3048.3,0.212]
[1763607976630,1.1287,3048.4,3048.3,3.492517]
[1763607978047,0.662,3048.4,3048.3,3.492517]
[1763607979551,1.1287,3048.4,3048.3,3.492517]
[1763607980356,0.662,3048.4,3048.3,3.492517]
[1763607981518,1.1287,3048.4,3048.3,3.492517]
[1763607981827,0.662,3048.4,3048.3,3.492517]
[1763607982626,0.1902,3048.9,3048.6,0.1]
[1763607982841,0.002,3049.1,3049.0,0.1]
[1763607983041,0.002,3049.1,3049.0,0.5799]
[1763607983276,0.002,3049.1,3049.0,1.0352]
[1763607983772,0.002,3049.1,3049.0,0.5799]
[1763607983943,0.002,3049.1,3049.0,1.0352]
[1763607984144,0.002,3049.1,3049.0,5.22195649]
[1763607985666,0.002,3049.1,3049.0,4.76665649]
[1763607986178,0.002,3049.1,3049.0,5.22195649]
[1763607986881,0.002,3049.1,3049.0,5.62746049]
[1763607987244,0.002,3049.1,3049.0,5.75871841]
[1763607989745,0.002,3049.4,3049.3,0.455504]
[1763607989975,0.002,3049.4,3049.3,6.06582189]
[1763607990179,0.002,3049.4,3049.3,7.82358262]
[1763607990390,0.002,3049.5,3049.4,1.79876473]
[1763607990549,0.002,3049.5,3049.4,2.34619664]
[1763607990745,0.002,3049.8,3049.7,0.15]
[1763607990979,0.002,3049.8,3049.7,0.7302]
[1763607991181,0.002,3049.8,3049.7,5.38070369]
[1763607991382,0.002,3049.8,3049.7,4.91620369]
[1763607991972,0.4602,3049.8,3049.7,4.44700369]
[1763607992278,0.002,3049.8,3049.7,4.91620369]
[1763607993160,0.002,3049.8,3049.7,5.78620769]
[1763607996265,0.002,3049.8,3049.7,5.32170769]
[1763607997783,0.002,3049.8,3049.7,5.21070769]
[1763607997987,0.002,3049.8,3049.7,5.32170769]
[1763607998348,0.002,3049.8,3049.7,4.85250769]
[1763607998546,0.002,3049.8,3049.7,5.33140769]
[1763607999244,0.4532,3049.8,3049.7,4.85250769]
[1763607999448,2.818993,3049.8,3049.7,0.1]
[1763607999649,2.818993,3049.8,3049.7,0.211]
[1763608000082,2.818993,3049.8,3049.7,0.1]
[1763608000083,6.09789653,3049.8,3049.7,0.1]
[1763608000288,6.09789653,3049.8,3049.7,0.0959]
[1763608000650,5.16749653,3049.8,3049.6,0.1]
[1763608000849,0.4512,3049.6,3049.0,0.1]
[1763608001049,0.4512,3049.2,3048.8,0.001]
[1763608001254,0.6352,3048.9,3048.8,0.101]
[1763608001505,0.6352,3048.9,3048.6,0.111]
[1763608001682,0.0062,3048.7,3048.6,0.211]
[1763608001949,3.28628659,3048.7,3048.6,0.211]
[1763608002181,4.16043525,3048.7,3048.6,0.211]
[1763608002992,4.16043525,3048.7,3048.6,0.1]
[1763608003193,0.88034866,3048.7,3048.6,0.1]
[1763608003522,4.16043525,3048.7,3048.6,0.1]
[1763608010747,4.56593925,3048.7,3048.6,0.1]
[1763608011065,0.405504,3048.6,3048.5,0.1]
[1763608011236,1.72095698,3048.6,3048.5,0.1]
[1763608011418,2.17215698,3048.6,3048.5,0.1]
[1763608011819,2.17215698,3048.6,3048.3,0.001]
[1763608012146,0.0062,3048.4,3048.3,0.101]
[1763608012621,3.76580939,3048.4,3048.3,0.101]
[1763608012834,4.68529549,3048.4,3048.3,0.101]
[1763608015435,1.4048861,3048.4,3048.3,0.101]
[1763608015640,3.76580939,3048.4,3048.3,0.101]
[1763608016640,0.4854,3048.4,3048.3,0.101]
[1763608016839,0.0062,3048.4,3048.3,0.101]
[1763608017058,3.76580939,3048.4,3048.3,0.101]
[1763608018480,0.4854,3048.4,3048.3,0.101]
[1763608019964,3.76580939,3048.4,3048.3,0.101]
[1763608020297,4.47041074,3048.4,3048.3,0.101]
[1763608020469,3.76580939,3048.4,3048.3,0.101]
[1763608020670,3.8068145,3048.4,3048.3,0.101]
[1763608021789,3.76580939,3048.4,3048.3,0.101]
[1763608022156,0.0062,3048.4,3048.3,0.101]
[1763608022996,0.4812,3048.7,3048.3,0.4799]
[1763608023192,0.4812,3048.7,3048.6,0.1]
[1763608023370,3.76128659,3048.7,3048.6,0.1]
[1763608023570,4.93500267,3048.7,3048.6,0.1]
[1763608024097,4.97600375,3048.7,3048.6,0.1]
[1763608024266,0.9324,3048.7,3048.6,0.1]
[1763608024699,4.21248659,3048.7,3048.6,0.1]
[1763608025073,0.9324,3048.7,3048.6,0.1]
[1763608025395,4.21248659,3048.7,3048.6,0.1]
[1763608025605,4.50093345,3048.7,3048.6,0.1]
[1763608025787,4.98013345,3048.7,3048.6,0.1]
[1763608027001,1.70004686,3048.7,3048.6,0.1]
[1763608027171,3.73328659,3048.7,3048.6,0.1]
[1763608027376,0.4532,3048.7,3048.6,0.1]
[1763608027602,4.21248659,3048.7,3048.6,0.1]
[1763608028024,0.9324,3048.7,3048.6,0.1]
[1763608028194,4.21248659,3048.7,3048.6,0.1]
[1763608028508,4.93060277,3048.7,3048.6,0.1]
[1763608029606,1.65051618,3048.7,3048.6,0.1]
[1763608029811,0.002,3048.7,3048.6,0.5828]
[1763608029976,0.002,3048.7,3048.6,4.31829418]
[1763608030178,0.002,3048.7,3048.6,1.0381]
[1763608030379,0.002,3048.7,3048.6,0.5828]
[1763608031710,0.002,3048.7,3048.6,4.31829418]
[1763608032017,0.002,3049.1,3049.0,0.1]
[1763608032192,0.002,3049.1,3049.0,5.23252233]
[1763608032391,0.002,3049.1,3049.0,5.68782233]
[1763608032795,0.002,3049.1,3049.0,6.59481497]
[1763608033207,0.002,3049.1,3049.0,9.87457882]
[1763608033413,0.002,3049.1,3049.0,10.28008282]
[1763608034002,0.002,3049.4,3049.3,0.555504]
[1763608034208,0.002,3049.4,3049.3,1.230704]
[1763608034407,0.002,3049.4,3049.3,1.686004]
[1763608035512,0.002,3049.4,3049.3,5.87243782]
[1763608044025,0.002,3049.4,3049.3,5.98343782]
[1763608047536,0.002,3049.4,3049.3,9.77343782]
[1763608048932,0.002,3049.4,3049.3,4.76923382]
[1763608049102,0.002,3049.4,3049.3,4.88023382]
[1763608049508,0.002,3049.4,3049.3,4.39743382]
[1763608049509,0.4219,3049.4,3049.3,4.39743382]
[1763608049910,0.9129,3049.4,3049.3,3.49044118]
[1763608050129,0.9129,3049.4,3049.3,0.211]
[1763608051307,1.33230684,3049.4,3049.3,0.211]
[1763608052939,4.61164047,3049.4,3049.3,0.211]
[1763608056638,4.61164047,3049.4,3049.3,0.1]
[1763608056841,11.17030773,3049.4,3049.0,0.001]
[1763608057022,3.70074047,3049.4,3049.3,0.1]
[1763608057218,4.17234047,3049.4,3049.3,0.1]
[1763608057723,4.61204047,3049.4,3049.3,0.1]
[1763608058849,1.33270684,3049.4,3049.3,0.1]
[1763608059027,4.61204047,3049.4,3049.3,0.1]
[1763608062252,6.23058639,3049.4,3049.0,0.001]
[1763608062545,0.0044,3049.1,3048.7,0.001]
[1763608062745,2.34877409,3049.3,3048.7,0.001]
[1763608062945,0.96228145,3049.3,3049.2,0.095]
[1763608063149,1.46198145,3049.3,3049.2,0.095]
[1763608063647,1.87388145,3049.3,3049.2,0.095]
[1763608064237,4.19104118,3049.3,3049.2,0.095]
[1763608064553,0.4997,3049.3,3049.2,0.095]
[1763608064751,0.002,3049.4,3049.3,0.095]
[1763608064926,0.002,3049.4,3049.3,0.5716]
[1763608065252,0.002,3049.4,3049.3,1.93129264]
[1763608066551,0.002,3049.4,3049.3,0.5716]
[1763608066945,0.002,3049.4,3049.3,4.75803382]
[1763608067550,0.002,3049.4,3049.3,1.47859264]
[1763608067757,0.002,3049.4,3049.3,4.75803382]
[1763608067931,0.4363,3049.4,3049.3,1.00199264]
[1763608068861,0.4363,3049.4,3049.3,4.28143382]
[1763608069158,0.002,3049.4,3049.3,4.28143382]
[1763608069652,0.002,3049.4,3049.3,4.75803382]
[1763608070570,0.002,3049.4,3049.3,4.28143382]
[1763608071370,0.9154,3049.4,3049.3,1.00199264]
[1763608071751,0.4363,3049.4,3049.3,0.207]
[1763608075073,0.4367,3049.4,3049.3,0.207]
[1763608075472,0.9153,3049.4,3049.3,0.207]
[1763608076171,1.33494361,3049.4,3049.3,0.207]
[1763608076344,4.19463363,3049.4,3049.3,0.207]
[1763608077147,0.9153,3049.4,3049.3,0.207]
[1763608079371,0.9153,3049.4,3049.3,0.001]
[1763608079372,4.19463363,3049.4,3049.3,0.001]
[1763608079571,4.19463363,3049.4,3049.3,0.096]
[1763608079872,4.94221982,3049.4,3049.3,0.096]
[1763608081644,4.98321149,3049.4,3049.3,0.096]
[1763608081839,4.94221982,3049.4,3049.3,0.096]
[1763608082572,1.66288619,3049.4,3049.3,0.096]
[1763608082771,4.19463363,3049.4,3049.3,0.096]
[1763608084175,0.9153,3049.4,3049.3,0.096]
[1763608084482,0.4367,3049.4,3049.3,0.096]
[1763608084977,0.9153,3049.4,3049.3,0.096]
[1763608085180,0.002,3049.4,3049.3,0.207]
[1763608085367,0.4372,3049.4,3049.3,0.207]
[1763608085571,0.002,3049.4,3049.3,0.6836]
[1763608085758,0.002,3049.4,3049.3,5.32273382]
[1763608086560,0.002,3049.4,3049.3,0.096]
[1763608086880,0.002,3049.4,3049.3,0.5726]
[1763608087289,0.002,3049.4,3049.3,4.30474118]
[1763608087749,0.002,3049.4,3049.3,3.85204118]
[1763608087952,0.002,3049.4,3049.3,4.32194118]
[1763608088982,0.002,3049.4,3049.3,3.85204118]
[1763608090693,0.002,3049.4,3049.3,4.32194118]
[1763608090892,0.002,3049.4,3049.3,5.22893382]
[1763608091394,0.002,3049.4,3049.3,6.00408557]
[1763608092308,0.002,3049.4,3049.3,5.63443782]
[1763608093570,0.002,3049.4,3049.3,4.75903382]
[1763608093773,0.002,3049.4,3049.3,5.33993382]
[1763608095593,0.002,3049.4,3049.3,4.75903382]
[1763608095806,0.002,3049.4,3049.3,4.87003382]
[1763608095957,0.002,3049.4,3049.3,1.59059264]
[1763608096153,0.9051,3049.4,3049.3,0.096]
[1763608096458,0.9051,3049.4,3049.3,0.207]
[1763608096658,1.32372419,3049.4,3049.3,0.207]
[1763608096890,0.9051,3049.4,3049.3,0.207]
[1763608097274,4.18443363,3049.4,3049.3,0.207]
[1763608098986,4.18443363,3049.4,3049.3,0.096]
[1763608100787,0.9051,3049.4,3049.3,0.096]
[1763608101091,4.18443363,3049.4,3049.3,0.096]
[1763608101271,4.93100397,3049.4,3049.3,0.096]
[1763608101806,5.23775202,3049.4,3049.3,0.096]
[1763608102873,5.64325602,3049.4,3049.3,0.096]
[1763608103068,1.31249664,3049.3,3049.2,0.1]
[1763608103290,3.43228029,3049.3,3049.0,0.001]
[1763608103457,0.902404,3049.1,3049.0,0.001]
[1763608103657,0.902404,3049.1,3049.0,0.101]
[1763608103858,0.9037,3049.1,3049.0,0.101]
[1763608104765,1.3516356,3049.3,3049.0,0.4754]
[1763608104970,0.002,3049.4,3049.3,0.1]
[1763608105171,0.4439,3049.4,3049.3,0.1]
[1763608105599,0.002,3049.4,3049.3,0.1]
[1763608105788,0.002,3049.4,3049.3,3.85384118]
[1763608106078,0.002,3049.4,3049.3,3.37944118]
[1763608106585,0.002,3049.4,3049.3,3.85384118]
[1763608106786,0.002,3049.4,3049.3,0.5744]
[1763608106985,0.002,3049.4,3049.3,3.85384118]
[1763608109216,0.002,3049.4,3049.3,4.32274118]
[1763608111576,0.002,3049.4,3049.3,3.85484118]
[1763608112608,0.002,3049.4,3049.3,5.22973382]
[1763608114231,0.002,3049.4,3049.3,5.34073382]
[1763608116230,0.002,3049.4,3049.3,4.87283382]
[1763608116433,0.4572,3049.4,3049.3,1.11899264]
[1763608116796,0.4572,3049.4,3049.3,4.39843382]
[1763608117034,0.002,3049.4,3049.3,4.39843382]
[1763608117536,0.002,3049.4,3049.3,4.87383382]
[1763608120121,0.002,3049.4,3049.3,5.36013382]
[1763608120736,0.002,3049.4,3049.3,4.87383382]
[1763608122163,0.9166,3049.4,3049.3,0.212]
[1763608122361,0.4527,3049.4,3049.3,0.212]
[1763608123226,0.9166,3049.4,3049.3,0.212]
[1763608124259,4.61570968,3049.4,3049.3,0.101]
[1763608124463,4.19593363,3049.4,3049.3,0.101]
[1763608125925,0.9166,3049.4,3049.3,0.101]
[1763608126524,0.9166,3049.4,3048.1,0.001]
[1763608126525,0.1821,3048.8,3048.1,0.001]
[1763608126724,3.73922463,3048.2,3048.1,0.101]
[1763608126953,5.15353036,3048.2,3048.1,0.001]
[1763608127152,5.61753036,3048.2,3048.1,0.101]
[1763608127352,5.31070195,3048.2,3048.1,0.101]
[1763608129794,5.01619795,3048.2,3048.1,0.001]
[1763608129964,5.01619795,3048.2,3048.1,0.101]
[1763608131005,4.90519795,3048.2,3048.1,0.101]
[1763608131219,6.21769459,3048.2,3048.1,0.101]
[1763608131707,6.21769459,3048.2,3048.0,0.101]
[1763608131708,0.90699264,3048.1,3048.0,0.101]
[1763608131904,0.405504,3048.0,3047.7,0.101]
[1763608132070,1.31249664,3047.6,3047.1,0.001]
[1763608132273,1.77109664,3047.6,3047.1,0.001]
[1763608132574,2.23509664,3047.6,3047.4,0.097]
[1763608132790,2.91278554,3047.6,3047.4,0.097]
[1763608132994,4.28278217,3047.5,3047.4,0.097]
[1763608133202,4.28278217,3047.5,3047.1,0.001]
[1763608133203,1.31249664,3047.4,3047.1,0.001]
[1763608133402,6.30858899,3047.3,3047.1,0.001]
[1763608133606,8.20792279,3047.3,3047.1,0.001]
[1763608133793,8.20792279,3047.3,3047.2,0.101]
[1763608134878,11.48951633,3047.3,3047.2,0.001]
[1763608135089,11.48951633,3047.3,3047.1,0.001]
[1763608135293,1.80179664,3047.2,3046.8,0.101]
[1763608135493,0.855504,3047.0,3046.8,0.101]
[1763608135917,1.319504,3047.0,3046.8,0.101]
[1763608136419,1.319504,3047.0,3045.6,3.39440702]
[1763608136420,0.405504,3046.8,3046.4,0.1]
[1763608136714,0.2116,3046.9,3046.4,0.1]
[1763608136715,0.405504,3046.6,3046.4,0.1]
[1763608136917,5.05355191,3046.5,3046.4,0.1]
[1763608137085,0.405504,3046.4,3045.0,0.001]
[1763608137289,0.405504,3046.2,3045.0,0.001]
[1763608137588,0.405504,3046.2,3046.1,0.1]
[1763608138118,0.864104,3046.2,3046.1,0.1]
[1763608138278,1.328104,3046.2,3046.1,0.1]
[1763608138482,1.439104,3046.2,3046.1,0.1]
[1763608139107,0.405504,3046.0,3045.9,0.1]
[1763608139318,1.30589166,3046.0,3045.9,0.1]
[1763608139623,1.79079166,3046.0,3045.9,0.1]
[1763608140741,3.28256302,3046.4,3045.9,0.1]
[1763608140884,3.39356302,3046.4,3046.0,0.4918]
[1763608141082,3.39356302,3046.4,3046.3,0.1]
[1763608141290,0.90699264,3046.6,3046.3,0.1]
[1763608141496,0.6461,3047.3,3046.7,0.1]
[1763608141722,0.4586,3046.8,3046.1,0.1982]
[1763608142020,0.4586,3046.8,3046.7,0.1]
[1763608142233,0.9226,3046.8,3046.7,0.1]
[1763608142634,0.96362665,3046.8,3046.7,0.1]
[1763608142923,0.96362665,3046.8,3046.6,0.1]
[1763608142924,0.405504,3046.7,3046.6,0.1]
[1763608143128,5.7810784,3046.7,3046.6,0.1]
[1763608143297,5.8019784,3046.7,3046.6,0.1]
[1763608143883,0.405504,3046.5,3046.1,0.1]
[1763608144090,0.90699264,3046.6,3045.8,0.1]
[1763608144091,1.31249664,3046.2,3045.8,0.1]
[1763608144291,0.405504,3046.0,3045.8,0.1]
[1763608144505,1.046204,3045.9,3045.8,0.1]
[1763608144892,6.95898899,3045.9,3045.8,0.1]
[1763608145122,6.95898899,3045.9,3045.1,0.1]
[1763608145123,1.31249664,3045.6,3045.1,0.1]
[1763608145285,0.405504,3045.4,3045.0,0.001]
[1763608145491,0.4586,3045.1,3045.0,0.101]
[1763608145700,0.90699264,3045.6,3045.0,0.001]
[1763608146027,1.31249664,3045.6,3045.5,0.1]
[1763608146212,2.2578098,3045.6,3045.5,0.1]
[1763608146411,3.1804098,3045.6,3045.5,0.1]
[1763608146805,3.0694098,3045.6,3045.5,0.1]
[1763608147002,0.405504,3045.5,3045.0,0.001]
[1763608147196,0.023,3045.1,3045.0,0.101]
[1763608148090,0.498,3045.1,3045.0,0.101]
[1763608148422,0.903504,3045.1,3045.0,0.101]
[1763608149207,5.20546104,3045.1,3045.0,0.101]
[1763608149543,5.49048831,3045.1,3045.0,0.101]
[1763608150425,4.58349567,3045.1,3045.0,0.101]
[1763608150611,4.69449567,3045.1,3045.0,0.101]
[1763608151297,4.58349567,3045.1,3045.0,0.101]
[1763608151496,0.84893127,3045.1,3045.0,0.1]
[1763608151830,0.5616,3045.1,3045.0,0.1]
[1763608152022,1.0366,3045.1,3045.0,0.1]
[1763608152627,1.07764955,3045.1,3045.0,0.1]
[1763608153032,2.39014619,3045.1,3045.0,0.1]
[1763608153240,5.63306104,3045.1,3045.0,0.1]
[1763608153437,7.28263456,3045.1,3045.0,0.1]
[1763608154241,7.17163456,3045.1,3045.0,0.1]
[1763608154442,6.9789347,3045.1,3045.0,0.1]
[1763608154749,4.64155704,3045.1,3045.0,0.1]
[1763608154902,4.75255704,3045.1,3045.0,0.1]
[1763608155103,5.22755704,3045.1,3045.0,0.1]
[1763608155338,5.53184545,3045.1,3045.0,0.1]
[1763608155540,6.74590593,3045.1,3045.0,0.1]
[1763608157046,6.27090593,3045.1,3045.0,0.1]
[1763608157850,6.74590593,3045.1,3045.0,0.1]
[1763608159729,5.36391329,3045.1,3045.0,0.1]